fUST/lending_fUST_20240225
["ID","MTS","AMOUNT","RATE_DAILY","PERIOD"]
[315105836,1708825842241,-200.5294442,0.0001989,2]
[315105837,1708825842250,-262.10347125,0.000199,2]
[315105838,1708825842259,-2086.28077692,0.000199,2]
[315105839,1708825842269,-1005.37078822,0.00019963,2]
[315105840,1708825842278,-745.13367533,0.00019998,2]
[315105841,1708825842288,-4282.07471613,0.00019998,2]
[315105842,1708825842297,-622.76113952,0.00019998,2]
[315105843,1708825842309,-274.37951668,0.00019998,2]
[315105844,1708825842319,-1266.7840824,0.00019998,2]
[315105845,1708825842329,-317.61983637,0.00019998,2]
[315105846,1708825842339,-194.47359819,0.00019998,2]
[315105847,1708825842348,-677.415638,0.00019998,2]
[315105849,1708825842458,-830.37,0.00019999,2]
[315105850,1708825842468,-830.37,0.00019999,2]
[315105851,1708825842478,-830.37,0.00019999,2]
[315105852,1708825842487,-830.37,0.00019999,2]
[315105853,1708825842496,-830.37,0.00019999,2]
[315105854,1708825842506,-830.37,0.00019999,2]
[315105855,1708825842515,-830.37,0.00019999,2]
[315105856,1708825842524,-830.37,0.00019999,2]
[315105857,1708825842533,-830.37,0.00019999,2]
[315105858,1708825842543,-830.37,0.00019999,2]
[315105859,1708825842555,-830.59272049,0.00019999,2]
[315105860,1708825842564,-152.54905509,0.00019999,2]
[315105861,1708825842574,-194.77953548,0.00019999,2]
[315105862,1708825842583,-781500.4150282,0.0002,2]
[315105864,1708825842605,-500.0,0.00019499,2]
[315105865,1708825842614,-1620.46461434,0.0002,2]
[315105871,1708825842959,-500.0,0.00019499,2]
[315105872,1708825842968,-500.0,0.00019499,2]
[315105873,1708825842977,-500.0,0.00019499,2]
[315105874,1708825842987,-500.0,0.00019499,2]
[315105875,1708825842996,-500.0,0.00019499,2]
[315105876,1708825843005,-500.0,0.00019499,2]
[315105877,1708825843014,-500.0,0.00019499,2]
[315105878,1708825843023,-483.9,0.00019499,2]
[315105880,1708825843049,-16.1,0.00019499,2]
[315105882,1708825843058,-500.0,0.00019499,2]
[315105883,1708825843067,-500.0,0.00019499,2]
[315105884,1708825843076,-500.0,0.00019499,2]
[315105885,1708825843085,-500.0,0.00019499,2]
[315105886,1708825843094,-500.0,0.00019499,2]
[315105887,1708825843103,-500.0,0.00019499,2]
[315105888,1708825843112,-500.0,0.00019499,2]
[315105889,1708825843121,-500.0,0.00019499,2]
[315105890,1708825843129,-500.0,0.00019499,2]
[315105891,1708825843138,-500.0,0.00019499,2]
[315105892,1708825843147,-500.0,0.00019499,2]
[315105893,1708825843156,-500.0,0.00019499,2]
[315105894,1708825843165,-500.0,0.00019499,2]
[315105895,1708825843175,-500.0,0.00019499,2]
[315105896,1708825843185,-500.0,0.00019499,2]
[315105897,1708825843194,-500.0,0.00019499,2]
[315105898,1708825843204,-500.0,0.00019499,2]
[315105899,1708825843214,-500.0,0.00019499,2]
[315105900,1708825843223,-500.0,0.00019499,2]
[315105901,1708825843232,-500.0,0.00019499,2]
[315105902,1708825843242,-500.0,0.00019499,2]
[315105903,1708825843251,-500.0,0.00019499,2]
[315105904,1708825843261,-500.0,0.00019499,2]
[315105905,1708825843270,-500.0,0.00019499,2]
[315105906,1708825843279,-500.0,0.00019499,2]
[315105907,1708825843288,-500.0,0.00019499,2]
[315105908,1708825843297,-500.0,0.00019499,2]
[315105909,1708825843308,-70.98454146,0.00019499,2]
[315105910,1708825843319,-429.01545854,0.00019499,2]
[315105911,1708825843329,-500.0,0.00019499,2]
[315105912,1708825843338,-500.0,0.00019499,2]
[315105913,1708825843347,-500.0,0.00019499,2]
[315105914,1708825843356,-500.0,0.00019499,2]
[315105915,1708825843366,-500.0,0.00019499,2]
[315105916,1708825843375,-500.0,0.00019499,2]
[315105917,1708825843384,-500.0,0.00019499,2]
[315105918,1708825843392,-500.0,0.00019499,2]
[315105919,1708825843402,-500.0,0.00019499,2]
[315105920,1708825843410,-500.0,0.00019499,2]
[315105921,1708825843419,-500.0,0.00019499,2]
[315105922,1708825843429,-500.0,0.00019499,2]
[315105923,1708825843438,-500.0,0.00019499,2]
[315105924,1708825843447,-500.0,0.00019499,2]
[315105925,1708825843456,-500.0,0.00019499,2]
[315105926,1708825843465,-1510.84149414,0.0002,2]
[315105927,1708825843476,-297.91664767,0.0002,2]
[315105928,1708825843605,-500.0,0.00019499,2]
[315105947,1708825846122,-500.0,0.00019178,2]
[315105948,1708825846131,-2244.65724745,0.00019716,3]
[315105952,1708826056872,383.18909296,0.000176,2]
[315105954,1708826198054,5093.7972232,0.00018191,2]
[315105955,1708826249782,193.253115,0.00018191,2]
[315105960,1708826431718,5283.0073151,0.00018191,2]
[315105962,1708826451746,5283.0073151,0.00018191,2]
[315105963,1708826469725,3732.97537005,0.00018191,2]
[315105973,1708826596941,204.553855,0.0002,20]
[315105985,1708826672611,572.799834,0.000201,8]
[315105991,1708826780044,193.253115,0.00018118,2]
[315105993,1708826825146,-439.97754,0.00018893,2]
[315105994,1708826830132,-237.438098,0.00018893,2]
[315105995,1708826830154,-602.91001454,0.00018894,2]
[315105996,1708826830175,-467.48641177,0.000189,2]
[315105997,1708826830195,-977.17214448,0.00018998,2]
[315105999,1708826839272,-500.0,0.00018998,2]
[315106001,1708826960090,-677.415638,0.00018997,2]
[315106002,1708826960112,-55.89475649,0.00018998,2]
[315106003,1708826960133,-1279.49549389,0.00018998,2]
[315106062,1708827035051,270.0243529,0.00018175,2]
[315106067,1708827038137,-677.415638,0.00018613,2]
[315106068,1708827038147,-160.070552,0.00018614,2]
[315106069,1708827038157,-419.31598127,0.000189,2]
[315106070,1708827038166,-14.09398154,0.00018998,2]
[315106071,1708827038175,-635.32659493,0.00019068,2]
[315106072,1708827038185,-553.34,0.00019168,3]
[315106073,1708827038194,-502.42501212,0.00019176,2]
[315106074,1708827038204,-500.0,0.00019177,2]
[315106075,1708827038213,-498.21081952,0.00019178,2]
[315106076,1708827038222,-500.0,0.00019178,2]
[315106077,1708827038231,-500.46733772,0.00019178,2]
[315106078,1708827038240,-355.86350824,0.00019178,2]
[315106079,1708827038249,-500.0,0.00019178,2]
[315106080,1708827038258,-500.89176802,0.00019178,2]
[315106081,1708827038267,-331.61568185,0.00019178,2]
[315106082,1708827038277,-500.0,0.00019178,2]
[315106083,1708827038287,-500.51089973,0.00019178,2]
[315106084,1708827038300,-500.9329859,0.00019178,2]
[315106085,1708827038310,-500.0,0.00019178,2]
[315106086,1708827038319,-500.0,0.00019178,2]
[315106087,1708827038328,-500.78207553,0.00019178,2]
[315106088,1708827038338,-500.0,0.00019178,2]
[315106089,1708827038347,-500.0,0.00019178,2]
[315106090,1708827038356,-478.86577409,0.00019178,2]
[315106091,1708827038365,-500.71610009,0.00019178,2]
[315106092,1708827038376,-500.31261222,0.00019178,2]
[315106093,1708827038386,-614.7457335,0.00019178,2]
[315106094,1708827038395,-501.17275672,0.00019178,2]
[315106095,1708827038404,-500.53322629,0.00019178,2]
[315106096,1708827038413,-501.91005166,0.00019178,2]
[315106097,1708827038422,-500.0,0.00019178,2]
[315106098,1708827038431,-500.83188947,0.00019178,2]
[315106099,1708827038441,-500.0,0.00019178,2]
[315106100,1708827038450,-501.62472493,0.00019178,2]
[315106101,1708827038459,-501.31282411,0.00019178,2]
[315106102,1708827038468,-500.0,0.00019178,2]
[315106103,1708827038477,-500.0,0.00019178,2]
[315106104,1708827038486,-644.81275899,0.00019178,2]
[315106105,1708827038495,-500.58015319,0.00019178,2]
[315106106,1708827038504,-500.32565297,0.00019178,2]
[315106107,1708827038513,-500.0,0.00019178,2]
[315106108,1708827038523,-518.08991757,0.00019178,2]
[315106109,1708827038534,-500.0,0.00019178,2]
[315106110,1708827038543,-500.0,0.00019178,2]
[315106111,1708827038552,-500.0,0.00019178,2]
[315106112,1708827038561,-500.69603804,0.00019178,2]
[315106113,1708827038572,-500.0,0.00019178,2]
[315106114,1708827038581,-500.0,0.00019178,2]
[315106115,1708827038589,-500.0,0.00019178,2]
[315106116,1708827038598,-500.66148931,0.00019178,2]
[315106117,1708827038608,-271.13683731,0.00019178,2]
[315106118,1708827038617,-672.17,0.00019178,2]
[315106119,1708827038625,-198.35839426,0.00019178,2]
[315106120,1708827038634,-501.86428747,0.00019178,2]
[315106121,1708827038644,-500.6884034,0.00019178,2]
[315106122,1708827038653,-500.0,0.00019178,2]
[315106123,1708827038662,-500.72362543,0.00019178,2]
[315106124,1708827038671,-585.23587893,0.00019178,2]
[315106125,1708827038681,-500.0,0.00019178,2]
[315106126,1708827038691,-500.0,0.00019178,2]
[315106127,1708827038700,-283.48,0.00019178,2]
[315106128,1708827038708,-500.0,0.00019178,2]
[315106129,1708827038717,-500.0,0.00019178,2]
[315106130,1708827038726,-500.0,0.00019178,2]
[315106131,1708827038735,-500.0,0.00019178,2]
[315106132,1708827038744,-500.0,0.00019178,2]
[315106133,1708827038753,-500.0,0.00019178,2]
[315106134,1708827038762,-500.71978356,0.00019178,2]
[315106135,1708827038771,-527.35720046,0.00019178,2]
[315106136,1708827038783,-501.73727444,0.00019178,2]
[315106137,1708827038792,-389.05948452,0.00019178,2]
[315106138,1708827038801,-588.82175092,0.00019178,2]
[315106139,1708827038810,-501.41506988,0.00019178,2]
[315106140,1708827038820,-490.21714662,0.00019178,2]
[315106141,1708827038829,-500.56299601,0.00019178,2]
[315106142,1708827038839,-500.0,0.00019178,2]
[315106143,1708827038848,-501.02582955,0.00019178,2]
[315106144,1708827038857,-500.0,0.00019178,2]
[315106145,1708827038867,-500.0,0.00019178,2]
[315106146,1708827038876,-454.64032392,0.00019178,2]
[315106147,1708827038886,-500.0,0.00019178,2]
[315106148,1708827038895,-514.4,0.00019178,2]
[315106149,1708827038904,-500.81551083,0.00019178,2]
[315106150,1708827038913,-500.0,0.00019178,2]
[315106151,1708827038922,-500.0,0.00019178,2]
[315106152,1708827038932,-500.91261695,0.00019178,2]
[315106153,1708827038941,-502.14121956,0.00019178,2]
[315106154,1708827038951,-500.0,0.00019178,2]
[315106155,1708827038960,-500.0,0.00019178,2]
[315106156,1708827038970,-500.0,0.00019178,2]
[315106157,1708827038979,-500.42242112,0.00019178,2]
[315106158,1708827038988,-500.0,0.00019178,2]
[315106159,1708827038998,-504.84228172,0.00019178,2]
[315106160,1708827039007,-630.07,0.00019178,2]
[315106161,1708827039016,-500.0,0.00019178,2]
[315106162,1708827039025,-923.87,0.00019178,2]
[315106163,1708827039035,-923.87,0.00019178,2]
[315106164,1708827039044,-923.87,0.00019178,2]
[315106165,1708827039054,-500.0,0.00019178,2]
[315106166,1708827039063,-500.0,0.00019178,2]
[315106167,1708827039073,-500.0,0.00019178,2]
[315106168,1708827039082,-500.0,0.00019178,2]
[315106169,1708827039091,-500.48590517,0.00019178,2]
[315106170,1708827039101,-500.0,0.00019178,2]
[315106171,1708827039110,-500.0,0.00019178,2]
[315106172,1708827039119,-500.0,0.00019178,2]
[315106173,1708827039128,-500.0,0.00019178,2]
[315106174,1708827039138,-506.01446246,0.00019178,2]
[315106175,1708827039147,-500.0,0.00019178,2]
[315106176,1708827039156,-500.31919451,0.00019178,2]
[315106177,1708827039166,-1766.25,0.00019178,2]
[315106178,1708827039175,-500.5990605,0.00019178,2]
[315106179,1708827039185,-500.0,0.00019178,2]
[315106180,1708827039195,-503.59319425,0.00019178,2]
[315106181,1708827039205,-886.13,0.00019178,2]
[315106182,1708827039214,-500.0,0.00019178,2]
[315106183,1708827039224,-500.0,0.00019178,2]
[315106184,1708827039233,-1597.82,0.00019178,2]
[315106185,1708827039243,-500.0,0.00019178,2]
[315106186,1708827039252,-500.0,0.00019178,2]
[315106187,1708827039261,-500.0,0.00019178,2]
[315106188,1708827039271,-500.4561624,0.00019178,2]
[315106189,1708827039280,-234.52147682,0.00019178,2]
[315106190,1708827039290,-500.0,0.00019178,2]
[315106191,1708827039303,-500.0,0.00019178,2]
[315106192,1708827039313,-500.0,0.00019178,2]
[315106193,1708827039321,-500.0,0.00019178,2]
[315106194,1708827039333,-266.29835762,0.00019178,2]
[315106195,1708827039342,-501.59084194,0.00019178,2]
[315106196,1708827039351,-500.0,0.00019178,2]
[315106197,1708827039360,-500.92070554,0.00019178,2]
[315106198,1708827039369,-500.0,0.00019178,2]
[315106199,1708827039378,-500.59452776,0.00019178,2]
[315106200,1708827039388,-500.80825638,0.00019178,2]
[315106201,1708827039397,-500.0,0.00019178,2]
[315106202,1708827039406,-500.0,0.00019178,2]
[315106203,1708827039415,-173.44402135,0.00019178,2]
[315106204,1708827039424,-500.0,0.00019178,2]
[315106205,1708827039433,-500.0,0.00019178,2]
[315106206,1708827039442,-504.88602247,0.00019178,2]
[315106207,1708827039451,-501.58648155,0.00019178,2]
[315106208,1708827039461,-500.0,0.00019178,2]
[315106209,1708827039470,-500.36361747,0.00019178,2]
[315106210,1708827039480,-500.0,0.00019178,2]
[315106211,1708827039489,-500.0,0.00019178,2]
[315106212,1708827039498,-501.87606663,0.00019178,2]
[315106213,1708827039507,-500.0,0.00019178,2]
[315106214,1708827039516,-500.0,0.00019178,2]
[315106215,1708827039525,-500.0,0.00019178,2]
[315106216,1708827039534,-500.0,0.00019178,2]
[315106217,1708827039543,-500.0,0.00019178,2]
[315106218,1708827039552,-1515.62,0.00019178,2]
[315106219,1708827039561,-500.8490454,0.00019178,2]
[315106220,1708827039570,-969.8,0.00019178,2]
[315106221,1708827039579,-151.0,0.00019178,2]
[315106222,1708827039588,-500.0,0.00019178,2]
[315106223,1708827039598,-500.0,0.00019178,2]
[315106224,1708827039608,-500.0,0.00019178,2]
[315106225,1708827039617,-500.0,0.00019178,2]
[315106226,1708827039626,-566.74439129,0.00019178,2]
[315106227,1708827039732,-501.84296637,0.00019178,2]
[315106228,1708827039741,-500.0,0.00019178,2]
[315106229,1708827039750,-1150.79,0.00019178,2]
[315106230,1708827039759,-792.79,0.00019178,2]
[315106231,1708827039768,-1803.94,0.00019178,2]
[315106232,1708827039778,-500.0,0.00019178,2]
[315106233,1708827039787,-500.0,0.00019178,2]
[315106234,1708827039796,-500.0,0.00019178,2]
[315106235,1708827039805,-499.6293671,0.00019178,2]
[315106236,1708827039814,-502.24533247,0.00019178,2]
[315106237,1708827039823,-500.0,0.00019178,2]
[315106238,1708827039832,-1281.13,0.00019178,2]
[315106239,1708827039841,-1496.32,0.00019178,2]
[315106240,1708827039850,-500.0,0.00019178,2]
[315106241,1708827039859,-502.15109271,0.00019178,2]
[315106242,1708827039868,-500.0,0.00019178,2]
[315106243,1708827039878,-500.0,0.00019178,2]
[315106244,1708827039886,-503.80536449,0.00019178,2]
[315106245,1708827039895,-500.0,0.00019178,2]
[315106246,1708827039904,-501.9392003,0.00019178,2]
[315106247,1708827039913,-501.89164218,0.00019178,2]
[315106248,1708827039922,-500.0,0.00019178,2]
[315106249,1708827039932,-500.0,0.00019178,2]
[315106250,1708827039942,-500.0,0.00019178,2]
[315106251,1708827039951,-500.0,0.00019178,2]
[315106252,1708827039960,-6675.11,0.00019178,2]
[315106253,1708827039969,-939.31,0.00019178,2]
[315106254,1708827039978,-982.78,0.00019178,2]
[315106255,1708827039987,-500.0,0.00019178,2]
[315106256,1708827039996,-513.53288139,0.00019178,2]
[315106257,1708827040005,-500.0,0.00019178,2]
[315106258,1708827040014,-500.30903237,0.00019178,2]
[315106259,1708827040024,-501.07550028,0.00019178,2]
[315106260,1708827040035,-500.0,0.00019178,2]
[315106261,1708827040044,-500.0,0.00019178,2]
[315106262,1708827040053,-500.0,0.00019178,2]
[315106263,1708827040062,-647.50116398,0.00019178,2]
[315106264,1708827040071,-500.0,0.00019178,2]
[315106265,1708827040080,-500.0,0.00019178,2]
[315106266,1708827040089,-500.0,0.00019178,2]
[315106267,1708827040098,-283.11226416,0.00019178,2]
[315106268,1708827040107,-500.0,0.00019178,2]
[315106269,1708827040116,-500.42437072,0.00019178,2]
[315106270,1708827040125,-5640.84,0.00019178,2]
[315106271,1708827040134,-500.0,0.00019178,2]
[315106272,1708827040144,-1000.0,0.00019178,2]
[315106273,1708827040154,-500.56043297,0.00019178,2]
[315106274,1708827040163,-500.0,0.00019178,2]
[315106275,1708827040172,-500.0,0.00019178,2]
[315106276,1708827040181,-500.67810828,0.00019178,2]
[315106277,1708827040190,-500.0,0.00019178,2]
[315106279,1708827040199,-500.25974103,0.00019178,2]
[315106281,1708827040209,-501.47435516,0.00019178,2]
[315106282,1708827040219,-8689.02,0.00019178,2]
[315106283,1708827040229,-500.0,0.00019178,2]
[315106284,1708827040238,-500.0,0.00019178,2]
[315106285,1708827040247,-500.53058882,0.00019178,2]
[315106286,1708827040256,-2376.22,0.00019178,2]
[315106287,1708827040265,-500.0,0.00019178,2]
[315106288,1708827040275,-329.97857268,0.00019178,2]
[315106289,1708827040285,-501.07052146,0.00019178,2]
[315106290,1708827040297,-500.0,0.00019178,2]
[315106291,1708827040306,-502.61238656,0.00019178,2]
[315106293,1708827040315,-500.0,0.00019178,2]
[315106294,1708827040324,-500.0,0.00019178,2]
[315106295,1708827040334,-500.0,0.00019178,2]
[315106296,1708827040344,-500.72157887,0.00019178,2]
[315106297,1708827040353,-500.0,0.00019178,2]
[315106298,1708827040362,-500.0,0.00019178,2]
[315106299,1708827040371,-500.0,0.00019178,2]
[315106300,1708827040381,-500.0,0.00019178,2]
[315106301,1708827040390,-500.0,0.00019178,2]
[315106302,1708827040399,-500.0,0.00019178,2]
[315106303,1708827040408,-500.0,0.00019178,2]
[315106304,1708827040417,-500.0,0.00019178,2]
[315106305,1708827040426,-500.0,0.00019178,2]
[315106306,1708827040435,-500.0,0.00019178,2]
[315106308,1708827040444,-500.0,0.00019178,2]
[315106310,1708827040453,-500.0,0.00019178,2]
[315106311,1708827040463,-500.0,0.00019178,2]
[315106312,1708827040472,-500.0,0.00019178,2]
[315106313,1708827040481,-729.29,0.00019178,2]
[315106314,1708827040490,-500.0,0.00019178,2]
[315106315,1708827040498,-500.0,0.00019178,2]
[315106316,1708827040507,-500.0,0.00019178,2]
[315106317,1708827040516,-500.0,0.00019178,2]
[315106318,1708827040525,-500.0,0.00019178,2]
[315106319,1708827040535,-500.0,0.00019178,2]
[315106320,1708827040544,-500.0,0.00019178,2]
[315106321,1708827040554,-502.45733629,0.00019178,2]
[315106322,1708827040563,-500.0,0.00019178,2]
[315106323,1708827040571,-716.21,0.00019178,2]
[315106324,1708827040581,-640.29137298,0.00019178,2]
[315106325,1708827040590,-500.0,0.00019178,2]
[315106326,1708827040599,-500.93874818,0.00019178,2]
[315106328,1708827040608,-500.0,0.00019178,2]
[315106330,1708827040617,-500.0,0.00019178,2]
[315106331,1708827040626,-500.0,0.00019178,2]
[315106332,1708827040635,-3421.29,0.00019178,2]
[315106333,1708827040644,-500.82343001,0.00019178,2]
[315106334,1708827040653,-500.0,0.00019178,2]
[315106335,1708827040663,-500.0,0.00019178,2]
[315106337,1708827040672,-1217.04,0.00019178,2]
[315106339,1708827040681,-500.0,0.00019178,2]
[315106340,1708827040691,-500.62885476,0.00019178,2]
[315106342,1708827040700,-506.70986665,0.00019178,2]
[315106344,1708827040709,-556.58939169,0.00019178,2]
[315106345,1708827040718,-500.0,0.00019178,2]
[315106346,1708827040727,-500.0,0.00019178,2]
[315106347,1708827040736,-6181.61,0.00019178,2]
[315106348,1708827040744,-500.0,0.00019178,2]
[315106349,1708827040753,-500.0,0.00019178,2]
[315106350,1708827040762,-618.09332603,0.00019178,2]
[315106351,1708827040771,-515.28596672,0.00019178,2]
[315106352,1708827040781,-500.0,0.00019178,2]
[315106353,1708827040790,-1644.16,0.00019178,2]
[315106354,1708827040799,-500.0,0.00019178,2]
[315106355,1708827040808,-540.76,0.00019178,2]
[315106356,1708827040817,-500.38903503,0.00019178,2]
[315106357,1708827040826,-500.0,0.00019178,2]
[315106358,1708827040835,-502.10212227,0.00019178,2]
[315106359,1708827040844,-500.0,0.00019178,2]
[315106360,1708827040853,-501.05713696,0.00019178,2]
[315106361,1708827040862,-500.0,0.00019178,2]
[315106362,1708827040871,-1633.32,0.00019178,2]
[315106363,1708827040880,-500.0,0.00019178,2]
[315106364,1708827040889,-500.0,0.00019178,2]
[315106365,1708827040898,-500.0,0.00019178,2]
[315106366,1708827040907,-1131.65,0.00019178,2]
[315106367,1708827040916,-500.0,0.00019178,2]
[315106368,1708827040925,-500.0,0.00019178,2]
[315106369,1708827040934,-166.666666,0.00019178,2]
[315106370,1708827040943,-180.713043,0.00019178,2]
[315106371,1708827040952,-224.999,0.000192,2]
[315106372,1708827040961,-224.999,0.000192,2]
[315106373,1708827040970,-225.0,0.000192,2]
[315106374,1708827040980,-224.999,0.000192,2]
[315106375,1708827040989,-224.999,0.000192,2]
[315106376,1708827040998,-500.0,0.00019232,2]
[315106377,1708827041007,-397.24900067,0.00019242,2]
[315106378,1708827041016,-500.0,0.00019287,2]
[315106379,1708827041026,-500.0,0.00019342,2]
[315106380,1708827041036,-132849.40598859,0.00019352,2]
[315106381,1708827041045,-500.0,0.00019396,2]
[315106382,1708827041054,-923.87,0.0001945,2]
[315106383,1708827041064,-500.0,0.00019451,2]
[315106384,1708827041073,-500.0,0.00019451,2]
[315106385,1708827041082,-179.4964323,0.00019451,2]
[315106386,1708827041091,-923.87,0.00019451,2]
[315106387,1708827041100,-500.0,0.00019451,2]
[315106388,1708827041109,-500.36338572,0.00019452,2]
[315106389,1708827041118,-500.47297557,0.00019452,2]
[315106390,1708827041128,-500.0,0.00019452,2]
[315106391,1708827041137,-500.46925039,0.00019452,2]
[315106392,1708827041146,-500.0,0.00019452,2]
[315106393,1708827041155,-502.07549956,0.00019452,2]
[315106394,1708827041164,-501.35115534,0.00019452,2]
[315106395,1708827041173,-500.0,0.00019452,2]
[315106396,1708827041182,-500.0,0.00019452,2]
[315106397,1708827041191,-500.0,0.00019452,2]
[315106398,1708827041200,-500.0,0.00019452,2]
[315106399,1708827041210,-500.0,0.00019452,2]
[315106400,1708827041220,-500.0,0.00019452,2]
[315106401,1708827041229,-500.0,0.00019452,2]
[315106402,1708827041239,-672.17,0.00019452,2]
[315106403,1708827041248,-500.0,0.00019452,2]
[315106404,1708827041257,-500.0,0.00019452,2]
[315106405,1708827041266,-503.13406727,0.00019452,2]
[315106406,1708827041275,-500.0,0.00019452,2]
[315106407,1708827041285,-558.93924452,0.00019452,2]
[315106408,1708827041296,-500.0,0.00019452,2]
[315106409,1708827041306,-503.76889244,0.00019452,2]
[315106410,1708827041315,-158.76788744,0.00019452,2]
[315106411,1708827041325,-452.48362881,0.00019452,2]
[315106412,1708827041335,-179.23,0.00019452,2]
[315106413,1708827041345,-514.4,0.00019452,2]
[315106414,1708827041355,-326.14,0.00019452,2]
[315106415,1708827041364,-500.0,0.00019452,2]
[315106416,1708827041377,-500.0,0.00019452,2]
[315106418,1708827041387,-179.26758643,0.00019452,2]
[315106419,1708827041396,-630.07,0.00019452,2]
[315106420,1708827041405,-500.0,0.00019452,2]
[315106421,1708827041414,-500.0,0.00019452,2]
[315106422,1708827041423,-500.0,0.00019452,2]
[315106423,1708827041432,-500.61204648,0.00019452,2]
[315106424,1708827041442,-500.0,0.00019452,2]
[315106425,1708827041451,-500.0,0.00019452,2]
[315106426,1708827041460,-500.0,0.00019452,2]
[315106427,1708827041468,-502.44629387,0.00019452,2]
[315106428,1708827041477,-500.0,0.00019452,2]
[315106429,1708827041486,-500.0,0.00019452,2]
[315106430,1708827041495,-1766.25,0.00019452,2]
[315106431,1708827041504,-500.0,0.00019452,2]
[315106432,1708827041513,-886.13,0.00019452,2]
[315106433,1708827041522,-500.0,0.00019452,2]
[315106434,1708827041531,-407.1112027,0.00019452,2]
[315106435,1708827041541,-1597.82,0.00019452,2]
[315106436,1708827041550,-501.03510043,0.00019452,2]
[315106437,1708827041559,-501.64163409,0.00019452,2]
[315106438,1708827041568,-501.08580917,0.00019452,2]
[315106439,1708827041577,-500.87512496,0.00019452,2]
[315106440,1708827041587,-500.0,0.00019452,2]
[315106441,1708827041596,-500.0,0.00019452,2]
[315106442,1708827041607,-502.11744697,0.00019452,2]
[315106443,1708827041616,-500.5220926,0.00019452,2]
[315106444,1708827041626,-500.0,0.00019452,2]
[315106445,1708827041634,-285.05808848,0.00019452,2]
[315106446,1708827041643,-500.0,0.00019452,2]
[315106447,1708827041652,-502.2133131,0.00019452,2]
[315106448,1708827041661,-500.0,0.00019452,2]
[315106449,1708827041670,-500.0,0.00019452,2]
[315106450,1708827041679,-500.0,0.00019452,2]
[315106451,1708827041688,-500.0,0.00019452,2]
[315106452,1708827041697,-500.0,0.00019452,2]
[315106453,1708827041706,-500.0,0.00019452,2]
[315106454,1708827041715,-500.0,0.00019452,2]
[315106455,1708827041724,-1515.62,0.00019452,2]
[315106456,1708827041733,-969.8,0.00019452,2]
[315106457,1708827041742,-151.0,0.00019452,2]
[315106458,1708827041751,-500.30920183,0.00019452,2]
[315106459,1708827041760,-495.59120605,0.00019452,2]
[315106460,1708827041770,-500.33518309,0.00019452,2]
[315106461,1708827041778,-500.0,0.00019452,2]
[315106462,1708827041788,-500.37846823,0.00019452,2]
[315106463,1708827041798,-1150.79,0.00019452,2]
[315106464,1708827041806,-792.79,0.00019452,2]
[315106465,1708827041815,-1803.94,0.00019452,2]
[315106466,1708827041824,-501.11618932,0.00019452,2]
[315106467,1708827041833,-500.0,0.00019452,2]
[315106468,1708827041842,-500.0,0.00019452,2]
[315106469,1708827041851,-500.0,0.00019452,2]
[315106470,1708827041860,-1281.13,0.00019452,2]
[315106471,1708827041869,-1496.32,0.00019452,2]
[315106472,1708827041878,-500.29968996,0.00019452,2]
[315106473,1708827041888,-500.44502459,0.00019452,2]